fUSD/lending_fUSD_20260702
["ID","MTS","AMOUNT","RATE_DAILY","PERIOD"]
[426911765,1783005051000,-151.0,0.00034,7]
[426911768,1783005051000,-160.0,0.00034,120]
[426911767,1783005051000,-151.0,0.00034,7]
[426911774,1783005051000,-333.61536,0.00034,7]
[426911751,1783005051000,-361.584144,0.00034,7]
[426911771,1783005051000,-151.0,0.00034,7]
[426911766,1783005051000,-151.0,0.00034,7]
[426911757,1783005051000,-746.378298,0.00034,7]
[426911745,1783005051000,-299.114282,0.00034,7]
[426911758,1783005051000,-151.0,0.00034,7]
[426911769,1783005051000,-160.0,0.00034,10]
[426911738,1783005051000,-294.857138,0.00034,7]
[426911743,1783005051000,-151.0,0.00034,7]
[426911740,1783005051000,-151.0,0.00034,7]
[426911739,1783005051000,-151.0,0.00034,7]
[426911742,1783005051000,-151.0,0.00034,7]
[426911737,1783005051000,-294.857138,0.00034,7]
[426911747,1783005051000,-151.0,0.00034,7]
[426911741,1783005051000,-151.0,0.00034,7]
[426911746,1783005051000,-151.0,0.00034,7]
[426911748,1783005051000,-746.378298,0.00034,7]
[426911744,1783005051000,-151.0,0.00034,7]
[426911750,1783005051000,-151.0,0.00034,7]
[426911760,1783005051000,-151.0,0.00034,7]
[426911761,1783005051000,-151.0,0.00034,7]
[426911749,1783005051000,-361.584144,0.00034,7]
[426911756,1783005051000,-361.584144,0.00034,7]
[426911752,1783005051000,-746.378298,0.00034,7]
[426911776,1783005051000,-151.0,0.00034,7]
[426911780,1783005051000,-188.189326,0.00034,7]
[426911777,1783005051000,-333.61536,0.00034,7]
[426911801,1783005051000,-483.42664753,0.00034,7]
[426911800,1783005051000,-17295.82145346,0.000329,2]
[426911802,1783005051000,-185.543182,0.00034,7]
[426911803,1783005051000,-359.582752,0.00034,7]
[426911804,1783005051000,-941.668705,0.00034,7]
[426911813,1783005051000,-223.222078,0.00034,7]
[426911814,1783005051000,-151.0,0.00034,7]
[426911794,1783005051000,-429.888411,0.00034,7]
[426911811,1783005051000,-223.222078,0.00034,7]
[426911810,1783005051000,-223.222078,0.00034,7]
[426911805,1783005051000,-359.582752,0.00034,7]
[426911806,1783005051000,-185.543182,0.00034,7]
[426911807,1783005051000,-941.668705,0.00034,7]
[426911809,1783005051000,-359.582752,0.00034,7]
[426911815,1783005051000,-223.222078,0.00034,7]
[426911786,1783005051000,-151.0,0.00034,7]
[426911812,1783005051000,-151.0,0.00034,7]
[426911797,1783005051000,-359.582752,0.00034,7]
[426911808,1783005051000,-185.543182,0.00034,7]
[426911796,1783005051000,-941.668705,0.00034,7]
[426911787,1783005051000,-151.0,0.00034,7]
[426911798,1783005051000,-185.543182,0.00034,7]
[426911775,1783005051000,-333.61536,0.00034,7]
[426911779,1783005051000,-188.189326,0.00034,7]
[426911778,1783005051000,-188.189326,0.00034,7]
[426911782,1783005051000,-190.503747,0.00034,7]
[426911781,1783005051000,-188.189326,0.00034,7]
[426911783,1783005051000,-151.0,0.00034,7]
[426911784,1783005051000,-190.503747,0.00034,7]
[426911788,1783005051000,-190.503747,0.00034,7]
[426911792,1783005051000,-429.888411,0.00034,7]
[426911795,1783005051000,-429.888411,0.00034,7]
[426911790,1783005051000,-429.888411,0.00034,7]
[426911799,1783005051000,-458.24205747,0.00034,7]
[426911789,1783005051000,-151.0,0.00034,7]
[426911785,1783005051000,-190.503747,0.00034,7]
[426911791,1783005051000,-151.0,0.00034,7]
[426911793,1783005051000,-151.0,0.00034,7]
[426911840,1783005052000,-1278.0,0.00034006,2]
[426911843,1783005052000,-472.51497702,0.00034016,2]
[426911846,1783005052000,-786.0,0.00034034,2]
[426911844,1783005052000,-974.12702586,0.0003403,2]
[426911847,1783005052000,-786.0,0.00034034,2]
[426911848,1783005052000,-786.0,0.00034034,2]
[426911842,1783005052000,-306426.0,0.00034009,20]
[426911850,1783005052000,-316.85430177,0.00034046,2]
[426911849,1783005052000,-299.00682202,0.00034041,2]
[426911845,1783005052000,-1572.0,0.00034034,2]
[426911860,1783005052000,-170.05,0.00034117,13]
[426911854,1783005052000,-706.23575844,0.00034076,2]
[426911853,1783005052000,-221.92,0.00034073,60]
[426911851,1783005052000,-181.58711516,0.00034047,2]
[426911855,1783005052000,-46217.90080036,0.00034092,30]
[426911856,1783005052000,-150.0,0.00034094,30]
[426911861,1783005052000,-170.05,0.00034117,13]
[426911858,1783005052000,-156.80519713,0.00034095,2]
[426911859,1783005052000,-866.91246725,0.0003411,2]
[426911841,1783005052000,-1231.0,0.00034006,2]
[426911852,1783005052000,-221.93,0.00034073,60]
[426911837,1783005052000,-290.184055,0.00034,7]
[426911818,1783005052000,-151.0,0.00034,7]
[426911830,1783005052000,-314.47008,0.00034,7]
[426911816,1783005052000,-151.0,0.00034,7]
[426911826,1783005052000,-161.030777,0.00034,7]
[426911817,1783005052000,-151.0,0.00034,7]
[426911820,1783005052000,-151.0,0.00034,7]
[426911819,1783005052000,-151.0,0.00034,7]
[426911824,1783005052000,-151.0,0.00034,7]
[426911825,1783005052000,-161.030777,0.00034,7]
[426911821,1783005052000,-151.0,0.00034,7]
[426911823,1783005052000,-151.0,0.00034,7]
[426911822,1783005052000,-151.0,0.00034,7]
[426911828,1783005052000,-161.030777,0.00034,7]
[426911827,1783005052000,-161.030777,0.00034,7]
[426911838,1783005052000,-151.0,0.00034,7]
[426911839,1783005052000,-1362.0,0.00034006,2]
[426911834,1783005052000,-151.0,0.00034,7]
[426911857,1783005052000,-156.80519713,0.00034095,2]
[426911833,1783005052000,-151.0,0.00034,7]
[426911829,1783005052000,-314.47008,0.00034,7]
[426911831,1783005052000,-314.47008,0.00034,7]
[426911835,1783005052000,-151.0,0.00034,7]
[426911836,1783005052000,-151.0,0.00034,7]
[426911832,1783005052000,-314.47008,0.00034,7]
[426911862,1783005052000,-170.05,0.00034117,13]
[426911893,1783005052000,-266.65,0.000344,2]
[426911864,1783005052000,-265.7475,0.00034117,13]
[426911894,1783005052000,-1373.47807796,0.000344,7]
[426911891,1783005052000,-150.0,0.000344,2]
[426911890,1783005052000,-150.0,0.000344,2]
[426911895,1783005052000,-490.84981669,0.000344,7]
[426911889,1783005052000,-150.0,0.000344,2]
[426911896,1783005052000,-678.0,0.00028964,10]
[426911897,1783005052000,-165.16,0.0003,10]
[426911898,1783005052000,-446.20103305,0.00033419,2]
[426911899,1783005052000,-134.33210535,0.000344,7]
[426911892,1783005052000,-150.0,0.000344,2]
[426911902,1783005052000,-101.47074996,0.000344,7]
[426911901,1783005052000,-1271.27,0.000344,7]
[426911900,1783005052000,-127.25925004,0.000344,7]
[426911906,1783005052000,-459.0,0.00029294,10]
[426911905,1783005052000,-156.58,0.0002863,2]
[426911908,1783005052000,-300.0,0.00033419,2]
[426911909,1783005052000,-47.73149696,0.00034403,2]
[426911907,1783005052000,-300.0,0.00033419,2]
[426911910,1783005052000,-371.21168693,0.00034403,2]
[426911863,1783005052000,-277.56,0.00034117,13]
[426911903,1783005052000,-738.26850304,0.00034403,2]
[426911888,1783005052000,-150.0,0.000344,2]
[426911904,1783005052000,-234.89,0.00024658,2]
[426911884,1783005052000,-150.0,0.000344,2]
[426911887,1783005052000,-11.44444709,0.000344,2]
[426911873,1783005052000,-400.0,0.000342,30]
[426911866,1783005052000,-180.47,0.00034117,13]
[426911874,1783005052000,-6203.32461128,0.00034237,2]
[426911865,1783005052000,-180.47,0.00034117,13]
[426911868,1783005052000,-165.49,0.0003416,2]
[426911872,1783005052000,-1000.0,0.000342,30]
[426911867,1783005052000,-262.7175,0.00034117,13]
[426911871,1783005052000,-150.0,0.0003419,2]
[426911869,1783005052000,-281.74655185,0.00034173,2]
[426911870,1783005052000,-508.0,0.00034185,9]
[426911875,1783005052000,-5524.13683886,0.00034246,120]
[426911876,1783005052000,-171.48,0.00034247,25]
[426911881,1783005052000,-6203.32461128,0.00034367,2]
[426911885,1783005052000,-150.0,0.000344,2]
[426911882,1783005052000,-7485.26660317,0.00034367,2]
[426911877,1783005052000,-632.99480204,0.00034249,2]
[426911883,1783005052000,-1551.23,0.00034399,30]
[426911880,1783005052000,-1148.93824935,0.00034354,2]
[426911879,1783005052000,-2110.0,0.0003434,2]
[426911886,1783005052000,-138.55555291,0.000344,2]
[426911878,1783005052000,-207.79223646,0.00034288,2]
[426911927,1783005053000,-300.0,0.00033419,2]
[426911934,1783005053000,-800.0,0.000345,7]
[426911938,1783005053000,-158.63,0.000345,30]
[426911939,1783005053000,-269.66,0.00034544,60]
[426911928,1783005053000,-1864.6169783,0.000345,120]
[426911936,1783005053000,-800.0,0.000345,7]
[426911937,1783005053000,-800.0,0.000345,7]
[426911940,1783005053000,-326.27,0.00034544,60]
[426911930,1783005053000,-1101.26754386,0.00033419,2]
[426911932,1783005053000,-1000.0,0.000345,30]
[426911933,1783005053000,-800.0,0.000345,7]
[426911929,1783005053000,-1200.0,0.000345,120]
[426911935,1783005053000,-800.0,0.000345,7]
[426911931,1783005053000,-4141.10741829,0.000345,120]
[426911926,1783005053000,-300.0,0.00033419,2]
[426911915,1783005053000,-786.0,0.00034403,2]
[426911924,1783005053000,-2107.31,0.0002809,10]
[426911921,1783005053000,-632.99480204,0.0003449,2]
[426911922,1783005053000,-6093.90560341,0.000345,120]
[426911923,1783005053000,-700.37,0.000345,120]
[426911920,1783005053000,-2698.51575693,0.00034488,2]
[426911919,1783005053000,-350.0,0.00034482,2]
[426911917,1783005053000,-1568.99279464,0.00034403,2]
[426911918,1783005053000,-350.0,0.00034432,36]
[426911916,1783005053000,-786.0,0.00034403,2]
[426911914,1783005053000,-786.0,0.00034403,2]
[426911911,1783005053000,-414.78831307,0.00034403,2]
[426911913,1783005053000,-786.0,0.00034403,2]
[426911912,1783005053000,-786.0,0.00034403,2]
[426911942,1783005053000,-643.38,0.00034544,60]
[426911925,1783005053000,-341.0,0.00032834,30]
[426911941,1783005053000,-306.02,0.00034544,60]
[426911958,1783005053000,-2055.599,0.000346,10]
[426911943,1783005053000,-5952.08,0.00034544,60]
[426911972,1783005053000,-3528.0,0.00034765,10]
[426911974,1783005053000,-786.0,0.00034773,2]
[426911973,1783005053000,-786.0,0.00034773,2]
[426911969,1783005053000,-2698.51575693,0.000347,2]
[426911971,1783005053000,-3404.42,0.00034754,2]
[426911970,1783005053000,-150.0,0.00034703,30]
[426911968,1783005053000,-1722.46714,0.000347,120]
[426911945,1783005053000,-1304.6458,0.000346,30]
[426911966,1783005053000,-354.59,0.00034694,2]
[426911975,1783005053000,-786.0,0.00034773,2]
[426911964,1783005053000,-180.47,0.00034665,13]
[426911965,1783005053000,-262.7175,0.00034665,13]
[426911962,1783005053000,-265.7475,0.00034665,13]
[426911956,1783005053000,-1654.9113,0.000346,30]
[426911952,1783005053000,-1308.9496512,0.000346,30]
[426911967,1783005053000,-305.765,0.000347,7]
[426911957,1783005053000,-267.6319,0.000346,30]
[426911959,1783005053000,-2055.599,0.000346,30]
[426911944,1783005053000,-1000.0,0.00034594,30]
[426911946,1783005053000,-636.35,0.000346,30]
[426911949,1783005053000,-416.0627,0.000346,30]
[426911951,1783005053000,-169.4003488,0.000346,30]
[426911950,1783005053000,-1478.358,0.000346,20]
[426911948,1783005053000,-637.02,0.000346,10]
[426911955,1783005053000,-3733.57,0.000346,30]
[426911954,1783005053000,-3733.571,0.000346,20]
[426911960,1783005053000,-2055.6,0.000346,30]
[426911963,1783005053000,-180.47,0.00034665,13]
[426911947,1783005053000,-636.35,0.000346,20]
[426911961,1783005053000,-523.38,0.00034606,3]
[426911953,1783005053000,-3733.571,0.000346,30]
[426911984,1783005054000,-2200.0,0.000348,15]
[426912000,1783005054000,-2704.0,0.0003488,120]
[426911990,1783005054000,-5000.0,0.00034866,2]
[426911998,1783005054000,-527.65880405,0.0003488,120]
[426911986,1783005054000,-5810.99,0.00034846,2]
[426911983,1783005054000,-5000.0,0.000348,60]
[426911985,1783005054000,-295.81447753,0.00034802,120]
[426911988,1783005054000,-2094.0,0.00034856,7]
[426911979,1783005054000,-786.0,0.00034773,2]
[426911982,1783005054000,-1500.0,0.00034795,2]
[426911981,1783005054000,-8819.38890027,0.0003478,7]
[426911980,1783005054000,-19721.20068038,0.00034779,7]
[426911987,1783005054000,-4000.0,0.00034848,15]
[426911976,1783005054000,-786.0,0.00034773,2]
[426911977,1783005054000,-786.0,0.00034773,2]
[426911999,1783005054000,-753.0,0.0003488,120]
[426911978,1783005054000,-786.0,0.00034773,2]
[426911991,1783005054000,-5000.0,0.00034866,2]
[426911992,1783005054000,-5000.0,0.00034866,2]
[426912001,1783005054000,-813.0,0.0003488,120]
[426912010,1783005054000,-1377.8278,0.000349,10]
[426912008,1783005054000,-896.31,0.000349,20]
[426912007,1783005054000,-2143.61559405,0.000349,30]
[426912005,1783005054000,-2704.0,0.0003489,120]
[426912012,1783005054000,-1073.19377794,0.000349,10]
[426912004,1783005054000,-753.0,0.0003489,120]
[426912006,1783005054000,-813.0,0.0003489,120]
[426912009,1783005054000,-896.31,0.000349,20]
[426912003,1783005054000,-78437.27803927,0.00034888,7]
[426912011,1783005054000,-2391.45,0.000349,20]
[426911994,1783005054000,-170.06810672,0.00034869,2]
[426911993,1783005054000,-5000.0,0.00034866,2]
[426911995,1783005054000,-753.0,0.0003487,120]
[426911989,1783005054000,-6896.2026673,0.00034866,2]
[426911996,1783005054000,-2704.0,0.0003487,120]
[426911997,1783005054000,-813.0,0.0003487,120]
[426912002,1783005054000,-8216.692555,0.00034888,30]
[426912015,1783005239000,500.0,0.00030099,120]
[426912013,1783005239000,500.0,0.00029299,120]
[426912014,1783005239000,500.0,0.00030089,120]
[426912016,1783005249000,271.157794,0.0002,120]
[426912019,1783005333000,76040.6861,0.00028,120]
[426912020,1783005388000,19372.94,0.000266,120]
[426912024,1783005552000,783.126661,0.0002863,120]
[426912026,1783005553000,-109.65602569,0.00016645,2]
[426912025,1783005553000,-390.34397431,0.00016645,2]
[426912029,1783005872000,319.053481,0.0002863,120]
[426912031,1783005901000,427.0,0.00030137,120]
[426912052,1783006231000,-200.0,0.00016838,2]
[426912074,1783006231000,-24.36612948,0.00019355,2]
[426912072,1783006231000,-150.0,0.00019355,2]
[426912073,1783006231000,-150.0,0.00019355,2]
[426912078,1783006231000,-9.76612948,0.00019355,2]
[426912070,1783006231000,-379.61,0.00019355,7]
[426912064,1783006231000,-250.0,0.00018384,2]
[426912067,1783006231000,-8.3543447,0.00019344,2]
[426912068,1783006231000,-158.55939266,0.00019344,2]
[426912065,1783006231000,-178.16,0.00018731,2]
[426912063,1783006231000,-150.33746607,0.00018384,2]
[426912062,1783006231000,-162.86,0.00017645,2]
[426912049,1783006231000,-171.8,0.00016712,2]
[426912066,1783006231000,-180.26301877,0.00019319,2]
[426912071,1783006231000,-150.0,0.00019355,2]
[426912061,1783006231000,-163.9,0.00017179,2]
[426912056,1783006231000,-200.0,0.00016838,2]
[426912058,1783006231000,-250.0,0.00016903,2]
[426912059,1783006231000,-150.0,0.00016946,2]
[426912055,1783006231000,-200.0,0.00016838,7]
[426912050,1783006231000,-250.0,0.00016775,2]
[426912057,1783006231000,-772.73696258,0.00016838,2]
[426912054,1783006231000,-191.77669842,0.00016838,7]
[426912053,1783006231000,-8.22330158,0.00016838,7]
[426912051,1783006231000,-200.0,0.00016838,2]
[426912060,1783006231000,-178.70226194,0.00017079,2]
[426912077,1783006231000,-151.0,0.00019355,2]
[426912069,1783006231000,-300.0,0.00019354,2]
[426912075,1783006231000,-127.63387052,0.00019355,2]
[426912080,1783006231000,-193.0277779,0.00019355,2]
[426912096,1783006231000,-187.13,0.00019946,2]
[426912103,1783006231000,-1864.61,0.00020636,2]
[426912100,1783006231000,-500.0,0.00020348,2]
[426912104,1783006231000,-1445.0,0.0002091,2]
[426912101,1783006231000,-165.82,0.00020516,2]
[426912102,1783006231000,-23232.96313196,0.00020526,2]
[426912099,1783006231000,-200.0,0.00020125,2]
[426912097,1783006231000,-166.33,0.00019954,2]
[426912095,1783006231000,-259.42,0.00019939,2]
[426912083,1783006231000,-200.0,0.00019446,2]
[426912088,1783006231000,-3769.18,0.00019648,2]
[426912093,1783006231000,-850.0,0.00019895,2]
[426912098,1783006231000,-2559.79,0.0002,2]
[426912092,1783006231000,-1136.45,0.00019895,2]
[426912079,1783006231000,-141.23387052,0.00019355,2]
[426912087,1783006231000,-1852.42,0.00019643,2]
[426912082,1783006231000,-178.70226193,0.00019368,2]
[426912076,1783006231000,-150.0,0.00019355,2]
[426912094,1783006231000,-231.34,0.00019911,2]
[426912081,1783006231000,-153.0,0.00019355,2]
[426912084,1783006231000,-460.85307664,0.00019613,2]
[426912089,1783006231000,-150.0,0.00019759,2]
[426912090,1783006231000,-500.0,0.00019854,2]
[426912091,1783006231000,-150.0,0.0001986,2]
[426912085,1783006231000,-5198.30692336,0.00019613,2]
[426912086,1783006231000,-500.0,0.00019626,3]
[426912129,1783006232000,-867.42,0.00021757,2]
[426912133,1783006232000,-1597.89,0.00022,2]
[426912128,1783006232000,-150.99,0.00021757,2]
[426912126,1783006232000,-299.37,0.00021757,2]
[426912130,1783006232000,-500.0,0.00021833,2]
[426912131,1783006232000,-199.5,0.00021946,2]
[426912143,1783006232000,-500.0,0.00022321,2]
[426912144,1783006232000,-500.0,0.00022321,2]
[426912137,1783006232000,-20954.49771191,0.00022219,2]
[426912135,1783006232000,-500.0,0.00022107,2]
[426912136,1783006232000,-1864.61,0.00022184,2]
[426912134,1783006232000,-6282.0,0.00022,2]
[426912138,1783006232000,-2830.17078412,0.00022241,2]
[426912139,1783006232000,-18888.39,0.00022309,2]
[426912142,1783006232000,-378.15020405,0.00022321,2]
[426912124,1783006232000,-617.26,0.00021757,2]
[426912132,1783006232000,-566.0,0.00021984,2]
[426912125,1783006232000,-3054.71,0.00021757,2]
[426912109,1783006232000,-500.0,0.00021559,2]
[426912123,1783006232000,-299.99,0.00021757,7]
[426912105,1783006232000,-1129.0,0.00020997,2]
[426912106,1783006232000,-225.5,0.00021066,2]
[426912108,1783006232000,-1864.61,0.00021152,2]
[426912118,1783006232000,-2546.89,0.00021757,2]
[426912119,1783006232000,-1476.8,0.00021757,2]
[426912107,1783006232000,-500.0,0.00021073,2]
[426912113,1783006232000,-1864.61,0.00021668,2]
[426912112,1783006232000,-178.70226193,0.00021657,2]
[426912111,1783006232000,-307.26,0.00021644,4]
[426912110,1783006232000,-2395.14,0.00021559,2]
[426912116,1783006232000,-16919.27,0.00021757,2]
[426912117,1783006232000,-5195.78,0.00021757,2]
[426912115,1783006232000,-422.15,0.00021757,2]
[426912114,1783006232000,-9999.99,0.00021757,2]
[426912120,1783006232000,-499.99,0.00021757,2]
[426912122,1783006232000,-5737.86,0.00021757,2]
[426912121,1783006232000,-1138.95,0.00021757,2]
[426912141,1783006232000,-500.0,0.00022321,2]
[426912140,1783006232000,-331.06214071,0.00022321,2]
[426912127,1783006232000,-607.25,0.00021757,2]
[426912145,1783006232000,-500.0,0.00022321,2]
[426912170,1783006232000,-151.0,0.00022856,2]
[426912171,1783006232000,-151.0,0.00022856,2]
[426912180,1783006232000,-761.43,0.00023385,2]
[426912173,1783006232000,-151.0,0.00022856,2]
[426912174,1783006232000,-151.0,0.00022856,2]
[426912181,1783006232000,-6698.01981242,0.00023628,2]
[426912169,1783006232000,-151.0,0.00022856,2]
[426912172,1783006232000,-151.0,0.00022856,2]
[426912175,1783006232000,-151.0,0.00022856,2]
[426912177,1783006232000,-775.95,0.00023118,7]
[426912178,1783006232000,-698.40921246,0.00023321,2]
[426912179,1783006232000,-1707.73128892,0.00023333,2]
[426912183,1783006232000,-338.58,0.00023628,2]
[426912182,1783006232000,-988.46017311,0.00023628,2]
[426912184,1783006232000,-5501.88773301,0.00023628,2]
[426912185,1783006232000,-339.86301301,0.00023628,2]
[426912146,1783006232000,-173.40487326,0.00022321,2]
[426912163,1783006232000,-151.0,0.00022856,2]
[426912165,1783006232000,-151.0,0.00022856,2]
[426912176,1783006232000,-1707.73128892,0.00023,2]
[426912161,1783006232000,-151.0,0.00022856,2]
[426912147,1783006232000,-52672.10496838,0.00022322,2]
[426912156,1783006232000,-151.0,0.00022856,2]
[426912149,1783006232000,-5000.0,0.00022341,2]
[426912148,1783006232000,-36880.86503162,0.00022322,2]
[426912162,1783006232000,-151.0,0.00022856,2]
[426912150,1783006232000,-500.0,0.00022381,2]
[426912153,1783006232000,-500.0,0.00022655,2]
[426912152,1783006232000,-899.09,0.00022466,2]
[426912151,1783006232000,-395.92,0.00022466,2]
[426912154,1783006232000,-104.37190896,0.000227,2]
[426912158,1783006232000,-151.0,0.00022856,2]
[426912166,1783006232000,-151.0,0.00022856,2]
[426912167,1783006232000,-151.0,0.00022856,2]
[426912160,1783006232000,-151.0,0.00022856,2]
[426912168,1783006232000,-151.0,0.00022856,2]
[426912157,1783006232000,-151.0,0.00022856,2]
[426912159,1783006232000,-151.0,0.00022856,2]
[426912164,1783006232000,-151.0,0.00022856,2]
[426912155,1783006232000,-1760.23809104,0.000227,2]
[426912206,1783006237000,-428.0,0.00024,2]
[426912209,1783006237000,-713.36,0.00024,2]
[426912204,1783006237000,-1707.73128892,0.00024,2]
[426912199,1783006237000,-1707.73128892,0.00023667,2]
[426912198,1783006237000,-3728.81,0.0002364,2]
[426912201,1783006237000,-9775.4011725,0.000239,2]
[426912200,1783006237000,-1472.64,0.00023844,2]
[426912197,1783006237000,-7087.68698029,0.00023628,2]
[426912214,1783006237000,-2830.17078406,0.00024178,2]
[426912202,1783006237000,-165.82,0.00023903,2]
[426912208,1783006237000,-156.0,0.00024,2]
[426912203,1783006237000,-150.0,0.00023949,2]
[426912212,1783006237000,-5700.05061617,0.00024013,2]
[426912211,1783006237000,-227.0,0.00024,2]
[426912221,1783006237000,-165.29586221,0.00024907,2]
[426912219,1783006237000,-1707.73128892,0.00024667,2]
[426912218,1783006237000,-178.1,0.00024658,2]
[426912216,1783006237000,-350.29,0.00024525,7]
[426912220,1783006237000,-598.37,0.00024678,7]
[426912215,1783006237000,-1707.73128892,0.00024333,2]
[426912205,1783006237000,-156.0,0.00024,2]
[426912207,1783006237000,-557.0,0.00024,2]
[426912210,1783006237000,-151.0,0.00024,2]
[426912213,1783006237000,-346.43,0.0002411,2]
[426912217,1783006237000,-1000.0,0.00024658,2]
[426912260,1783006238000,-183.36705779,0.00026161,2]
[426912261,1783006238000,-184.59618799,0.00026161,2]
[426912252,1783006238000,-2408.53028299,0.0002616,2]
[426912259,1783006238000,-166.70605874,0.00026161,2]
[426912262,1783006238000,-175.10823315,0.00026161,2]
[426912255,1783006238000,-184.08200596,0.00026161,2]
[426912263,1783006238000,-189.4951176,0.00026161,2]
[426912253,1783006238000,-192.8634442,0.00026161,2]
[426912256,1783006238000,-315.23798161,0.00026161,2]
[426912265,1783006238000,-182.65646326,0.00026161,2]
[426912257,1783006238000,-237.38078488,0.00026161,2]
[426912258,1783006238000,-160.54348312,0.00026161,2]
[426912275,1783006238000,-191.00185903,0.00026168,2]
[426912271,1783006238000,-174.86711477,0.00026168,2]
[426912266,1783006238000,-185.55790319,0.00026161,2]
[426912274,1783006238000,-196.48270475,0.00026168,2]
[426912267,1783006238000,-156.76856649,0.00026161,2]
[426912270,1783006238000,-168.9864703,0.00026161,2]
[426912254,1783006238000,-178.87013667,0.00026161,2]
[426912272,1783006238000,-182.32627166,0.00026168,2]
[426912269,1783006238000,-365.64684076,0.00026161,2]
[426912268,1783006238000,-194.18967759,0.00026161,2]
[426912273,1783006238000,-150.97556347,0.00026168,2]
[426912276,1783006238000,-173.42834161,0.00026168,2]
[426912286,1783006238000,-173.26539591,0.00026168,2]
[426912284,1783006238000,-165.68723447,0.00026168,2]
[426912283,1783006238000,-201.9583952,0.00026168,2]
[426912264,1783006238000,-174.75642299,0.00026161,2]
[426912251,1783006238000,-330.59172442,0.0002616,2]
[426912244,1783006238000,-1707.73128892,0.00026,2]
[426912248,1783006238000,-227.0,0.00026,2]
[426912278,1783006238000,-169.29080598,0.00026168,2]
[426912227,1783006238000,-1707.73128892,0.00025,2]
[426912223,1783006238000,-182.82342038,0.00024908,2]
[426912222,1783006238000,-157.6189908,0.00024908,2]
[426912224,1783006238000,-166.33,0.00024943,2]
[426912226,1783006238000,-18888.39,0.0002499,2]
[426912225,1783006238000,-152.79684856,0.00024967,2]
[426912231,1783006238000,-156.0,0.00025,2]
[426912228,1783006238000,-156.0,0.00025,2]
[426912230,1783006238000,-557.0,0.00025,2]
[426912234,1783006238000,-160.0,0.00025,10]
[426912229,1783006238000,-428.0,0.00025,2]
[426912232,1783006238000,-64564.66,0.00025,10]
[426912238,1783006238000,-9775.40117245,0.00025122,2]
[426912233,1783006238000,-157.0,0.00025,2]
[426912236,1783006238000,-5256.94893841,0.00025031,2]
[426912235,1783006238000,-227.0,0.00025,2]
[426912237,1783006238000,-20954.49771184,0.00025037,2]
[426912250,1783006238000,-2830.17078406,0.00026115,2]
[426912240,1783006238000,-1002.22734277,0.00025338,2]
[426912242,1783006238000,-178.64,0.00025675,7]
[426912239,1783006238000,-1707.73128892,0.00025333,2]
[426912241,1783006238000,-1707.73128892,0.00025667,2]
[426912243,1783006238000,-1737.55400224,0.0002568,2]
[426912245,1783006238000,-428.0,0.00026,2]
[426912249,1783006238000,-247.45,0.00026027,7]
[426912246,1783006238000,-557.0,0.00026,2]
[426912247,1783006238000,-156.0,0.00026,2]
[426912280,1783006238000,-168.92575948,0.00026168,2]
[426912279,1783006238000,-171.6555426,0.00026168,2]